bitfinex/quotes_ETHUSD_20241223
["timestamp","ask_amount","ask_price","bid_price","bid_amount"]
[1734972575251,2.97108,3365.8,3364.3,2.97236]
[1734972575448,0.37998,3366.0,3363.3,0.02971629]
[1734972575656,2.97036,3366.6,3363.3,0.02971629]
[1734972575854,2.97036,3366.6,3364.1,2.9725]
[1734972576174,2.97026,3366.7,3363.9,3.00237092]
[1734972576373,2.97035,3366.6,3363.7,2.9729]
[1734972576581,0.817,3366.3,3363.0,0.58813184]
[1734972576799,2.96988,3367.2,3363.2,2.97327]
[1734972576800,2.97204,3364.7,3363.2,2.97327]
[1734972577095,0.8134,3365.0,3362.9,0.02972369]
[1734972577412,2.97224,3364.5,3362.7,0.02972525]
[1734972577567,2.97185,3364.9,3362.7,0.02972525]
[1734972577766,2.97206,3364.7,3362.7,0.02972525]
[1734972577966,2.97224,3364.5,3362.9,2.97356]
[1734972578197,2.97224,3364.5,3363.0,0.02972747]
[1734972578397,2.97224,3364.5,3362.9,2.97361]
[1734972578580,2.97224,3364.5,3362.8,2.97365]
[1734972578915,0.6350765,3364.5,3362.8,0.02972686]
[1734972579113,2.01266994,3366.7,3366.5,73.28513668]
[1734972579281,27.919783,3366.6,3366.5,66.78004023]
[1734972579466,30.292308,3366.6,3366.5,65.26042023]
[1734972579667,33.28188931,3366.6,3366.5,62.28998023]
[1734972579898,35.57143041,3366.6,3366.5,49.22608269]
[1734972580215,35.21699965,3366.6,3366.5,15.17987007]
[1734972580513,35.21699965,3366.6,3366.5,3.16986454]
[1734972580663,2.97276,3363.9,3362.9,0.84311964]
[1734972580860,0.25,3365.9,3362.9,0.8134]
[1734972581064,2.97206,3364.7,3362.9,0.8134]
[1734972581304,2.97305,3363.6,3362.4,0.8339]
[1734972581618,2.97341,3363.2,3362.4,0.8339]
[1734972581917,2.97341,3363.2,3360.9,0.02973738]
[1734972581918,2.9729,3363.8,3361.9,0.8045]
[1734972582069,2.97363,3362.9,3361.9,0.8045]
[1734972582267,5.97264,3364.1,3362.0,0.25]
[1734972582268,2.97326,3363.4,3362.0,0.25]
[1734972582518,3.0,3364.4,3362.0,0.25]
[1734972582665,2.97293,3363.7,3362.9,0.4781]
[1734972582866,2.97309,3363.5,3362.9,0.4781]
[1734972583102,2.97238,3364.3,3362.9,0.4781]
[1734972583299,2.97283,3363.8,3362.9,0.4781]
[1734972583464,2.97314,3363.5,3362.9,0.4781]
[1734972583871,2.97324,3363.4,3362.9,0.4781]
[1734972584083,2.97322,3363.4,3362.9,0.4781]
[1734972584422,2.97225,3364.5,3362.9,0.4781]
[1734972584423,2.97336,3363.2,3362.9,0.4781]
[1734972584911,2.97265,3364.0,3362.9,0.4781]
[1734972585115,3.0,3364.1,3362.9,0.4781]
[1734972585290,2.97353,3363.0,3362.9,0.4781]
[1734972586211,2.97353,3363.0,3362.9,0.23330352]
[1734972586389,5.97353,3363.0,3362.9,3.52e-06]
[1734972586572,2.97473,3361.7,3361.0,0.7935]
[1734972586773,6.067651,3363.1,3359.0,4.11012312]
[1734972586774,0.7931,3364.4,3362.2,0.25]
[1734972587029,0.7931,3365.2,3362.8,0.7935]
[1734972587176,2.97208,3364.7,3362.9,0.376735]
[1734972587372,0.7931,3365.2,3362.9,0.25]
[1734972587612,2.97223,3364.5,3362.8,0.7935]
[1734972587813,0.7931,3365.2,3363.4,0.25]
[1734972588532,0.7931,3365.2,3363.5,0.25]
[1734972588693,0.7931,3365.2,3363.3,0.25]
[1734972588900,3.7647,3365.2,3363.7,0.25]
[1734972589206,3.7647,3365.2,3363.6,0.7903]
[1734972589207,0.7931,3365.2,3363.6,0.7903]
[1734972589935,2.9718,3365.0,3363.6,0.7903]
[1734972590096,3.0,3364.9,3363.6,1.0403]
[1734972590297,3.0,3364.9,3363.6,0.7903]
[1734972590498,2.97204,3364.7,3363.6,0.7903]
[1734972590695,3.0,3364.9,3363.6,0.7903]
[1734972590946,0.7931,3365.2,3363.6,0.7903]
[1734972591244,0.25,3366.5,3362.0,3.0]
[1734972591245,0.0649528,3367.4,3366.1,0.25]
[1734972591446,0.0649528,3367.4,3366.2,0.8412]
[1734972591592,0.0649528,3367.4,3366.3,0.25]
[1734972591941,0.0649528,3367.4,3366.3,0.656196]
[1734972592143,0.0649528,3367.4,3367.2,0.25]
[1734972592293,0.0649528,3367.4,3367.3,0.8412]
[1734972593324,0.8019,3369.8,3367.3,1.42089243]
[1734972593515,1.991009,3369.8,3368.3,0.25]
[1734972593724,2.96725,3370.2,3368.4,0.8183]
[1734972594257,2.96746,3369.9,3368.4,0.8183]
[1734972594422,2.9679,3369.4,3368.4,1.0683]
[1734972594750,2.96718,3370.2,3368.4,1.0683]
[1734972594899,0.8019,3370.3,3368.4,1.0683]
[1734972594900,2.96779,3369.6,3368.4,1.0683]
[1734972595098,2.96782,3369.5,3368.7,0.25]
[1734972595336,2.96789,3369.4,3368.4,1.0683]
[1734972595643,2.96744,3369.9,3368.4,1.0683]
[1734972595800,2.96733,3370.1,3368.4,1.0683]
[1734972595999,2.9681,3369.2,3368.4,1.0683]
[1734972596200,2.96822,3369.1,3368.4,1.0683]
[1734972596449,2.96793,3369.4,3368.4,1.0683]
[1734972596649,2.96793,3369.4,3368.5,0.25]
[1734972597063,2.96793,3369.4,3368.4,0.8183]
[1734972597215,2.96815,3369.1,3368.4,0.8183]
[1734972597560,2.96835,3368.9,3367.7,0.793]
[1734972597861,2.96835,3368.9,3366.8,6.85824969]
[1734972597862,2.96788,3369.4,3366.7,0.25]
[1734972598013,2.96788,3369.4,3365.4,0.02970075]
[1734972598014,2.96921,3367.9,3365.4,0.02970075]
[1734972598360,0.8477,3366.9,3365.3,1.75148836]
[1734972598667,3.0,3366.8,3365.3,1.75148836]
[1734972598874,2.9709,3366.0,3365.3,1.75148836]
[1734972599163,2.96947,3367.6,3365.3,1.75148836]
[1734972599376,3.0,3367.0,3365.3,1.75148836]
[1734972599580,3.0,3367.0,3364.7,0.59075699]
[1734972599873,2.97083,3366.1,3364.7,0.59075699]
[1734972600077,3.0,3367.0,3364.7,0.59075699]
[1734972600280,3.0,3366.8,3364.7,0.59075699]
[1734972600421,2.97089,3366.0,3364.7,0.59075699]
[1734972600978,2.97106,3365.8,3364.8,0.8435]
[1734972601126,2.97133,3365.5,3364.8,0.8435]
[1734972601493,3.0,3366.3,3364.8,0.8435]
[1734972601784,0.8477,3368.0,3365.0,0.8144]
[1734972601967,2.97003,3367.0,3365.3,2.9715]
[1734972602147,2.97043,3366.6,3365.0,0.8144]
[1734972602355,0.8477,3368.0,3365.0,0.8144]
[1734972602672,2.96973,3367.3,3365.0,0.8144]
[1734972602981,2.97082,3366.1,3365.0,0.8144]
[1734972603330,2.97056,3366.4,3365.0,0.8144]
[1734972603564,2.97082,3366.1,3365.0,0.8144]
[1734972603780,3.0,3366.7,3365.0,0.8144]
[1734972603781,2.97133,3365.5,3365.0,0.8144]
[1734972603985,2.97167,3365.1,3363.7,0.8551]
[1734972604283,2.96887,3368.3,3365.3,0.8551]
[1734972604462,0.8409,3368.7,3365.8,0.8551]
[1734972604667,0.2793058,3368.8,3366.4,0.8551]
[1734972604832,2.96862,3368.6,3366.7,0.8551]
[1734972605178,0.8409,3369.2,3366.7,0.8551]
[1734972605388,0.8409,3369.2,3364.5,2.97218]
[1734972605389,0.8409,3367.8,3366.2,0.8551]
[1734972605673,2.96939,3367.7,3366.2,0.8551]
[1734972605881,3.8096,3368.5,3366.2,0.8551]
[1734972606031,2.96912,3368.0,3366.2,0.8551]
[1734972606233,3.81002,3368.0,3365.6,0.8551]
[1734972606569,3.81002,3368.0,3363.3,2.9732]
[1734972606570,2.97154,3365.3,3365.0,1.3332]
[1734972606752,3.0,3366.6,3365.0,1.3332]
[1734972607073,2.97097,3365.9,3365.0,1.3332]
[1734972607249,3.0,3366.0,3365.0,1.3332]
[1734972607250,2.97088,3366.0,3365.0,1.3332]
[1734972607446,2.97117,3365.7,3365.0,1.3332]
[1734972607645,2.97139,3365.5,3365.0,1.3332]
[1734972608052,5.97078,3366.2,3365.0,1.3332]
[1734972608053,3.0,3366.0,3365.0,0.4781]
[1734972608262,2.97155,3365.3,3365.0,0.4781]
[1734972608467,3.0,3365.8,3365.0,0.4781]
[1734972608640,0.7898,3365.9,3365.0,0.4781]
[1734972609049,2.97167,3365.1,3365.0,0.4781]
[1734972609444,2.97167,3365.1,3363.5,0.58250171]
[1734972609445,2.97245,3364.3,3363.8,0.8402]
[1734972609766,2.97224,3364.5,3363.8,0.8402]
[1734972609984,2.97123,3365.6,3363.8,0.8402]
[1734972610297,2.9718,3365.0,3363.8,0.8402]
[1734972610498,2.97156,3365.3,3363.8,0.8402]
[1734972610648,3.0,3366.2,3363.8,0.8402]
[1734972610846,3.388,3367.6,3363.0,1.06810634]
[1734972610847,1.1265,3367.8,3364.7,1.1829]
[1734972611044,1.1265,3367.8,3365.5,1.1829]
[1734972611360,2.97045,3366.5,3365.5,1.1829]
[1734972611569,2.97046,3366.5,3365.5,1.1829]
[1734972611861,2.96973,3367.3,3365.5,0.9429]
[1734972612080,1.1265,3366.6,3362.8,4.16401]
[1734972612398,1.1265,3366.6,3363.1,0.49393164]
[1734972612694,1.1265,3366.6,3363.7,2.97291]
[1734972612896,5.94124,3366.3,3363.4,2.97309]
[1734972613198,2.97217,3364.6,3363.1,0.464211]
[1734972613398,4.1265,3365.3,3363.0,3.45155]
[1734972613754,2.97126,3365.6,3363.6,2.97296]
[1734972613982,4.1265,3365.9,3363.3,3.00292336]
[1734972614170,2.97132,3365.5,3363.3,0.02972336]
[1734972614368,2.97187,3364.9,3363.2,2.97335]
[1734972614565,3.0,3365.5,3363.5,0.58377849]
[1734972614767,3.0,3365.5,3363.4,1.1829]
[1734972614989,2.97176,3365.0,3363.4,1.1829]
[1734972615173,2.97305,3363.6,3363.4,1.1829]
[1734972615370,2.97261,3364.1,3363.4,1.1829]
[1734972615576,2.97243,3364.3,3363.4,1.1829]
[1734972616063,2.97309,3363.5,3363.4,1.1829]
[1734972616307,2.97232,3364.4,3363.4,1.1829]
[1734972616512,2.97247,3364.2,3363.0,0.4781]
[1734972616655,2.97344,3363.1,3363.0,0.4781]
[1734972616863,5.97344,3363.1,3363.0,0.4781]
[1734972617056,5.97344,3363.1,3362.0,1.1699]
[1734972617057,5.94724,3362.9,3361.5,1.1699]
[1734972617379,2.97477,3361.6,3360.6,1.16765891]
[1734972617579,3.0,3362.1,3360.7,1.1699]
[1734972617798,2.97428,3362.2,3360.2,101.16765891]
[1734972617799,2.97548,3360.8,3360.2,102.31425891]
[1734972618107,1.0946,3361.9,3360.2,102.31425891]
[1734972618108,2.97588,3360.4,3360.2,102.31425891]
[1734972618310,2.97588,3360.4,3360.2,101.16765891]
[1734972618720,2.97588,3360.4,3360.2,100.0]
[1734972618906,4.1333,3360.3,3360.2,84.56015]
[1734972619222,6.446088,3360.3,3360.2,77.88875]
[1734972619416,6.39845,3360.3,3360.2,77.88875]
[1734972619602,3.0,3361.0,3360.2,77.88875]
[1734972619792,2.97586,3360.4,3360.2,77.88875]
[1734972620491,2.97586,3360.4,3360.2,74.91273]
[1734972620818,3.0,3360.3,3360.2,70.4487]
[1734972620964,2.133648,3360.3,3360.2,70.4487]
[1734972621168,2.97523,3361.1,3360.3,1.1372]
[1734972621415,2.97537,3361.0,3360.3,1.1372]
[1734972621616,2.97441,3362.0,3360.3,1.1372]
[1734972621770,2.97499,3361.4,3360.3,1.1372]
[1734972621971,2.97472,3361.7,3360.3,1.1372]
[1734972622177,2.9747,3361.7,3360.4,3.01934122]
[1734972622506,2.97405,3362.5,3360.6,2.97565]
[1734972622682,1.1754,3362.8,3360.9,1.1196]
[1734972622872,2.97313,3363.5,3361.5,2.97485]
[1734972623069,2.97313,3363.5,3360.5,3.0]
[1734972623070,2.973,3363.6,3361.6,1.1196]
[1734972623298,2.97298,3363.7,3362.2,2.97423]
[1734972623551,2.97238,3364.3,3362.3,1.0866]
[1734972623732,2.97352,3363.1,3362.3,1.0866]
[1734972623933,2.97316,3363.5,3362.3,1.0866]
[1734972624100,2.97247,3364.2,3362.3,1.0866]
[1734972624462,3.31162055,3364.2,3361.0,1.0866]
[1734972624651,1.51885055,3364.1,3361.0,1.0866]
[1734972624952,2.97282,3363.8,3361.0,1.0866]
[1734972625155,2.9715,3365.3,3363.3,1.1681]
[1734972625457,2.97179,3365.0,3363.3,1.1681]
[1734972625615,1.1797,3366.2,3363.3,1.1681]
[1734972625946,2.97115,3365.7,3363.3,1.1681]
[1734972626113,2.97227,3364.5,3363.3,1.1681]
[1734972626294,2.97115,3365.7,3363.3,1.1681]
[1734972626733,1.1797,3366.2,3363.3,1.1681]
[1734972626734,2.97275,3363.9,3363.3,1.1681]
[1734972626944,2.97288,3363.8,3363.3,1.1681]
[1734972627305,1.1244,3364.9,3363.3,1.1681]
[1734972627306,2.97318,3363.4,3363.3,1.1681]
[1734972627654,1.1244,3364.9,3363.3,1.1681]
[1734972627655,2.97283,3363.8,3363.3,1.1681]
[1734972627806,1.0941,3365.5,3363.3,1.1681]
[1734972628002,5.943,3365.3,3363.3,1.1681]
[1734972628202,1.0941,3365.5,3363.3,1.1681]
[1734972628397,2.97311,3363.5,3363.3,1.1681]
[1734972628626,2.97249,3364.2,3363.3,1.1681]
[1734972628830,3.0,3364.4,3363.3,1.1681]
[1734972629064,2.97348,3363.1,3361.9,1.1136]
[1734972629557,2.97418,3362.3,3361.9,1.1136]
[1734972629742,2.97389,3362.6,3361.9,1.1136]
[1734972630070,4.10276,3362.7,3360.7,1.1512]
[1734972630207,2.97541,3360.9,3360.7,1.1512]
[1734972630398,1.73312003,3360.9,3360.7,1.1512]
[1734972630805,2.97584,3360.4,3360.1,1.1512]
[1734972631426,5.9745,3362.0,3360.2,71.62605245]
[1734972631627,2.97526,3361.1,3360.2,71.62605245]
[1734972631938,2.97388,3362.6,3360.2,71.62605245]
[1734972631939,2.975,3361.4,3360.2,71.62605245]
[1734972632137,3.0,3362.0,3360.4,2.97581]
[1734972632347,2.9745,3361.9,3360.2,71.62605245]
[1734972632656,2.97457,3361.9,3360.3,1.96355354]
[1734972632815,2.9739,3362.6,3360.4,2.97577]
[1734972632816,2.97388,3362.6,3360.4,2.97577]
[1734972633011,2.9741,3362.4,3360.4,0.55]
[1734972633263,2.97327,3363.3,3361.0,1.1512]
[1734972633407,2.97362,3362.9,3361.0,1.1512]
[1734972633613,2.97441,3362.1,3361.0,1.1512]
[1734972634154,2.97335,3363.2,3361.0,4.539086]
[1734972634364,2.97371,3362.8,3361.1,1.1512]
[1734972634514,2.97346,3363.1,3361.7,2.97467]
[1734972634710,2.97346,3363.1,3361.8,1.1512]
[1734972634916,1.1289,3364.9,3361.9,1.18093943]
[1734972635153,1.1289,3364.9,3362.6,4.12507]
[1734972635154,2.97261,3364.1,3362.6,4.12507]
[1734972635359,2.97127,3365.6,3363.8,1.1512]
[1734972635654,2.97083,3366.1,3363.8,1.1512]
[1734972635655,2.97143,3365.4,3363.9,2.97272]
[1734972635813,2.97147,3365.4,3363.9,2.97272]
[1734972636015,1.1289,3367.2,3364.0,0.02971893]
[1734972636330,1.1289,3367.2,3364.9,1.1512]
[1734972636640,2.97124,3365.6,3364.9,1.1512]
[1734972636809,1.1289,3367.2,3364.9,1.1512]
[1734972637010,2.97176,3365.0,3363.3,0.02971923]
[1734972637261,2.97231,3364.4,3363.4,1.1512]
[1734972637413,2.97156,3365.3,3363.4,1.1512]
[1734972637414,1.1289,3366.2,3363.4,1.1512]
[1734972637956,2.97088,3366.0,3363.8,2.97281]
[1734972638269,2.97088,3366.0,3363.3,2.97326]
[1734972638270,2.97153,3365.3,3364.0,1.1665]
[1734972638417,2.97117,3365.7,3364.1,0.02972096]
[1734972638765,2.97035,3366.6,3364.2,2.97247]
[1734972638929,1.1714,3366.8,3364.2,0.02971751]
[1734972639129,1.1714,3366.8,3364.0,1.1665]
[1734972639130,2.97035,3366.6,3364.0,1.1665]
[1734972639348,2.97106,3365.9,3364.5,2.9722]
[1734972639513,2.97106,3365.8,3364.5,2.9722]
[1734972639713,2.97065,3366.3,3364.8,1.1731]
[1734972639910,0.60304324,3367.4,3365.1,0.55]
[1734972640159,2.96992,3367.1,3365.3,1.1731]
[1734972640364,2.97027,3366.7,3365.3,4.14458]
[1734972640528,3.30682998,3368.0,3365.3,0.1731]
[1734972640728,3.30696998,3367.8,3365.3,0.1731]
[1734972640931,2.97028,3366.7,3365.3,0.1731]
[1734972641134,2.97016,3366.9,3365.3,0.51727707]
[1734972641453,1.1173,3368.1,3365.4,0.0297073]
[1734972641618,2.96964,3367.5,3365.4,0.0297073]
[1734972641971,0.005,3368.1,3367.5,2.96951]
[1734972642129,0.005,3368.1,3365.6,3.55]
[1734972642130,2.96648,3371.0,3367.6,0.02969208]
[1734972642330,2.96648,3371.0,3368.0,2.96909]
[1734972642331,5.41995535,3370.5,3368.0,2.96909]
[1734972642531,0.1699293,3371.2,3368.6,3.85824969]
[1734972642532,2.96702,3370.4,3368.6,3.85824969]
[1734972642716,2.96641,3371.1,3369.4,2.96783]
[1734972642913,0.1699293,3371.2,3369.5,0.02967197]
[1734972643116,0.1699293,3371.2,3368.5,3.0]
[1734972643315,0.1699293,3371.2,3368.1,0.296909]
[1734972643316,2.96639,3371.1,3368.1,0.296909]
[1734972643560,2.96647,3371.0,3368.1,1.1956]
[1734972643756,2.96838,3368.9,3368.1,1.1956]
[1734972644264,1.42915688,3371.1,3368.1,1.1956]
[1734972644265,3.0,3369.8,3368.1,1.1956]
[1734972644422,2.96843,3368.8,3368.1,1.1956]
[1734972644759,2.96894,3368.2,3368.1,1.1956]
[1734972644914,5.96771,3369.6,3365.6,3.85824969]
[1734972644915,2.96917,3368.0,3366.5,1.2155]
[1734972645120,2.96815,3369.1,3366.5,1.2155]
[1734972645121,3.0,3368.7,3366.5,1.2155]
[1734972645315,3.0,3368.9,3366.5,1.2155]
[1734972645550,2.96869,3368.5,3366.6,2.97033]
[1734972645748,3.0,3370.2,3366.8,1.1474]
[1734972645965,3.0,3369.7,3366.8,1.1474]
[1734972646186,2.96904,3368.1,3366.8,1.1474]
[1734972646390,2.96863,3368.6,3366.8,1.1474]
[1734972646539,2.96917,3368.0,3366.8,1.1474]
[1734972646739,3.0,3368.8,3366.8,1.1474]
[1734972646976,3.0,3369.3,3366.8,1.1474]
[1734972647183,2.96887,3368.3,3366.8,1.1474]
[1734972647378,2.9684,3368.9,3366.9,0.02969557]
[1734972647581,2.96876,3368.5,3366.8,4.529294]
[1734972647782,2.96834,3368.9,3367.0,1.1124]
[1734972647984,2.96808,3369.2,3367.0,1.1124]
[1734972648291,1.2077,3369.8,3367.0,1.1124]
[1734972648456,2.96762,3369.7,3367.0,1.26778647]
[1734972648657,2.96861,3368.6,3367.0,1.26778647]
[1734972648874,2.96861,3368.6,3366.8,2.97013]
[1734972648875,3.0,3369.6,3366.7,0.59050652]
[1734972649092,2.96675,3370.7,3369.0,2.9682]
[1734972649240,2.96649,3371.0,3369.2,1.1124]
[1734972649449,0.005,3371.3,3369.7,2.96754]
[1734972649636,0.005,3371.3,3370.4,1.1124]
[1734972649843,0.005,3371.3,3370.5,2.9669]
[1734972650287,0.005,3371.3,3370.4,1.1124]
[1734972650584,0.005,3371.3,3370.5,2.96687]
[1734972650790,0.005,3371.3,3370.7,2.96671]
[1734972651091,2.96544,3372.2,3370.1,2.96727]
[1734972651393,2.96399,3373.9,3370.3,3.0296599]
[1734972651539,2.96399,3373.9,3371.2,2.96629]
[1734972651540,2.96472,3373.0,3371.2,2.96629]
[1734972651737,0.1699293,3374.5,3371.5,2.96603]
[1734972651738,2.96452,3373.3,3371.5,2.96603]
[1734972651983,2.96491,3372.8,3371.3,1.1124]
[1734972652135,2.96519,3372.5,3371.3,1.1124]
[1734972652335,2.96384,3374.0,3371.3,1.1124]
[1734972652336,2.96392,3373.9,3371.3,1.1124]
[1734972652651,2.96486,3372.9,3371.3,4.0786]
[1734972652854,2.96366,3374.2,3371.4,0.57965278]
[1734972653056,0.1699293,3374.5,3371.4,0.55]
[1734972653057,2.96472,3373.0,3371.4,0.55]
[1734972653578,0.1699293,3374.5,3371.3,1.1124]
[1734972653989,2.96392,3373.9,3371.3,1.1124]
[1734972654188,2.96419,3373.6,3371.3,1.1124]
[1734972654481,2.96535,3372.3,3371.3,1.1124]
[1734972654796,3.0,3372.9,3371.3,1.1124]
[1734972654999,2.96573,3371.9,3371.3,1.1124]
[1734972655167,2.96586,3371.7,3371.3,1.1124]
[1734972655365,2.96532,3372.4,3371.3,1.1124]
[1734972655569,2.96589,3371.7,3371.3,1.1124]
[1734972655809,2.9655,3372.2,3371.3,1.1124]
[1734972656013,0.25,3373.7,3369.7,1.2145]
[1734972656014,2.96632,3371.2,3369.7,1.2145]
[1734972656214,1.1757,3373.3,3369.7,1.2145]
[1734972656413,3.0,3372.7,3369.9,1.2145]
[1734972656622,3.0,3372.5,3370.0,1.2145]
[1734972656776,2.96515,3372.5,3370.0,1.2145]
[1734972656973,2.96648,3371.0,3370.0,1.2145]
[1734972657286,2.96614,3371.4,3370.0,1.2145]
[1734972657485,2.96559,3372.1,3370.4,2.96698]
[1734972657675,2.96582,3371.8,3370.2,1.2145]
[1734972657871,2.96586,3371.7,3370.2,1.2145]
[1734972658227,2.96559,3372.0,3370.2,1.2145]
[1734972658521,2.96639,3371.1,3370.2,1.2145]
[1734972658719,2.96422,3373.6,3370.2,1.2145]
[1734972659026,3.0,3372.2,3370.2,1.2145]
[1734972659577,0.58506858,3373.4,3370.5,1.042]
[1734972659773,1.1757,3374.0,3370.5,4.03851874]
[1734972660077,2.96517,3372.5,3371.0,2.96647]
[1734972660291,2.96534,3372.3,3370.9,1.042]
[1734972660576,2.96589,3371.7,3370.9,1.042]
[1734972661004,2.96468,3373.1,3370.9,1.042]
[1734972661005,2.96558,3372.1,3370.9,1.042]
[1734972661388,0.58667379,3373.7,3370.9,1.042]
[1734972661721,2.96561,3372.0,3370.9,1.042]
[1734972661890,2.96568,3371.9,3370.9,1.042]
[1734972662080,3.138,3373.7,3370.9,1.042]
[1734972662277,0.60117057,3373.9,3370.9,1.042]
[1734972662631,2.96539,3372.3,3371.2,1.0425]
[1734972662778,2.96551,3372.1,3371.2,1.0425]
[1734972662978,3.0,3372.9,3371.2,1.0425]
[1734972663226,2.96539,3372.3,3371.2,1.0425]
[1734972663421,3.0,3372.9,3371.2,1.0425]
[1734972663422,2.9652,3372.5,3371.2,1.0425]
[1734972663579,2.96463,3373.1,3371.2,1.0425]
[1734972663780,3.0,3373.2,3371.2,1.0425]
[1734972663979,2.96527,3372.4,3371.2,1.0425]
[1734972664181,2.9657,3371.9,3371.2,1.0425]
[1734972664427,2.96642,3371.1,3370.6,1.0425]
[1734972664575,2.96559,3372.0,3370.6,1.0425]
[1734972664781,2.96595,3371.6,3370.6,1.0425]
[1734972665026,3.0,3372.4,3370.6,1.0425]
[1734972665328,1.1739,3372.8,3370.6,1.0425]
[1734972665329,2.96644,3371.1,3370.6,1.0425]
[1734972665528,2.96604,3371.5,3370.6,1.0425]
[1734972665730,2.96674,3370.7,3370.6,1.0425]
[1734972665937,2.22389,3370.7,3369.9,1.0425]
[1734972666238,3.0,3371.2,3368.5,1.63665186]
[1734972666383,2.96773,3369.6,3368.5,1.20913265]
[1734972666578,2.96789,3369.4,3368.5,1.20913265]
[1734972666782,4.12845,3371.5,3368.7,1.0425]
[1734972666988,2.96622,3371.3,3369.9,4.00992]
[1734972667193,2.96655,3371.0,3369.9,1.0425]
[1734972667396,2.96561,3372.0,3369.9,1.0425]
[1734972668003,2.96627,3371.3,3369.9,1.0425]
[1734972668234,2.96627,3371.3,3370.0,0.400997]
[1734972668450,2.96518,3372.5,3370.2,0.55]
[1734972668657,2.96477,3373.0,3370.7,1.0425]
[1734972668837,2.96477,3373.0,3370.4,3.13621128]
[1734972668838,1.1438,3374.1,3371.3,0.55]
[1734972669152,1.187567,3375.2,3371.0,2.96647]
[1734972669153,2.4985,3376.2,3371.6,0.55]
[1734972669352,2.4985,3376.2,3370.7,0.25]
[1734972669353,2.96276,3375.3,3373.0,0.55]
[1734972669559,2.96241,3375.7,3373.6,3.13621128]
[1734972669740,2.9629,3375.1,3373.6,3.13621128]
[1734972669945,2.96247,3375.6,3373.7,0.55]
[1734972670110,2.01675493,3377.0,3374.3,0.55]
[1734972670111,2.9621,3376.0,3374.3,0.55]
[1734972670311,4.97800493,3377.0,3375.1,1.0425]
[1734972670312,2.01675493,3377.0,3375.1,1.0425]
[1734972670569,3.01122908,3379.4,3376.9,0.55]
[1734972670570,3.23766908,3379.4,3376.9,0.55]
[1734972670722,1.2091,3379.0,3377.0,0.02960302]
[1734972670931,1.2091,3379.0,3375.6,3.83460073]
[1734972670932,2.96036,3378.0,3376.6,0.02960081]
[1734972671113,2.96006,3378.4,3375.7,0.02960704]
[1734972671312,2.96098,3377.3,3375.6,0.55]
[1734972671513,2.96006,3378.4,3375.7,0.57961284]
[1734972671514,3.1303993,3377.9,3375.7,0.57961284]
[1734972671854,3.1303993,3377.9,3374.4,3.314839]
[1734972671855,0.1699293,3377.9,3374.7,0.02961307]
[1734972672015,2.96208,3376.0,3373.9,0.02961992]
[1734972672213,2.96208,3376.0,3371.8,0.25]
[1734972672214,1.59503433,3377.8,3373.0,0.60316156]
[1734972672414,1.2934,3377.8,3373.2,0.25]
[1734972672613,1.2934,3377.8,3374.7,2.96318]
[1734972672845,1.2934,3377.8,3374.0,0.60084125]
[1734972673050,2.96198,3376.2,3374.4,2.96346]
[1734972673217,2.96068,3377.6,3373.4,2.96429]
[1734972673218,2.96157,3376.6,3374.8,2.96311]
[1734972673440,2.96076,3377.5,3374.8,2.96311]
[1734972673645,0.1699293,3377.9,3375.4,0.55]
[1734972673842,2.96128,3377.0,3375.5,0.02961512]
[1734972674042,2.96128,3377.0,3375.1,2.96287]
[1734972674043,2.96085,3377.4,3375.1,0.02961536]
[1734972674241,2.96085,3377.4,3375.2,3.51274]
[1734972674458,2.96142,3376.8,3375.2,0.02961545]
[1734972674695,2.96142,3376.8,3375.2,0.383871]
[1734972674975,2.96159,3376.6,3374.8,0.02961688]
[1734972675280,2.96159,3376.6,3374.7,2.99275874]
[1734972675281,2.96163,3376.6,3374.7,2.99275874]
[1734972675588,3.0,3377.0,3374.3,0.02962164]
[1734972675728,2.96234,3375.7,3373.4,0.02962714]
[1734972675936,2.962,3376.1,3373.8,0.6075653]
[1734972676136,5.96129,3376.9,3373.9,2.99348394]
[1734972676371,2.96217,3376.0,3373.9,0.02962394]
[1734972676551,2.96239,3375.7,3373.9,2.99351394]
[1734972676767,3.1303893,3377.9,3374.3,4.08460073]
[1734972676984,0.1699293,3377.9,3375.4,2.9626]
[1734972677184,0.1699293,3377.9,3375.5,2.99212378]
[1734972677185,2.96113,3377.1,3375.5,2.99212378]
[1734972678045,2.96113,3377.1,3375.6,0.55]
[1734972678472,0.1699293,3377.9,3375.5,0.02961378]
[1734972678789,2.96116,3377.1,3375.6,0.35422338]
[1734972678943,2.96154,3376.7,3374.8,2.96308]
[1734972679140,3.0,3377.7,3374.9,0.02961682]
[1734972679378,2.96144,3376.8,3375.0,2.96294]
[1734972679691,2.96174,3376.4,3374.5,0.02961726]
[1734972679854,2.96219,3375.9,3374.2,2.96361]
[1734972680054,2.96167,3376.5,3374.4,2.96348]
[1734972680268,3.0,3377.0,3374.5,0.02962076]
[1734972680588,2.9606,3377.7,3374.5,0.02962076]
[1734972680790,2.9606,3377.7,3375.0,2.96293]
[1734972680791,2.9614,3376.8,3375.0,2.96293]
[1734972681089,2.96068,3377.6,3375.1,2.99248796]
[1734972681293,2.96027,3378.1,3375.2,0.2992488]
[1734972681440,2.96027,3378.1,3375.1,0.02961796]
[1734972681441,2.96022,3378.2,3375.1,0.02961796]
[1734972681642,2.9605,3377.8,3375.1,2.99244796]
[1734972681842,2.96022,3378.2,3375.2,0.55]